Workbook

Sheet Zadání
C3: 1. Na listu Cyklický odkaz vytvořte zjednodušenou mapu, ve které hodnota v buňce je průměrem osmi okolních hodnot. Vyplněné buňky nepřepisujte.
C4: 2. Použijte funkci Podmíněné formátování pro barevné zvýraznění rozdílů v buňkách mapy.
C5: 3. Na listu PAHy najdete měsíční koncentrace polyaromatických uhlovodíků v letech 2003-2012.
C6: 4. Aktivujte buňku B3 na listu PAHy a zahajte záznam makra, které pojmenujete Graf.
C7: 5. V režimu záznamu makra vytvořte sloupcový graf o čtyřech sloupcích udávajících koncentrace PAHů dne 15.10.2003, bez legendy s popisy osy x z řádku 2 a názvem grafu odpovídajícím kalendářnímu datu.
C8: 6. Přiřaďte makru klávesovou zkratku Ctrl+Shift+Q.
C9: 7. Přemístěte kurzor do buňky B4 a pomocí klávesové zkratky spusťte makro Graf za účelem vytvoření grafu obsahujícího údaje z řádku 4.
C10: 8. Pokud makro neproběhlo, otevřete okno ditoru Visual Basic a pomocí funkce Debug vyhledejte a pokuste se opravit chybu.
C11: 9. Proběhlo-li makro, komentujte, co bylo vykonáno v rozporu s naším požadavkem.
C12: 10. Využijte funkce ActiveCell.Offset() pro relativizaci příslušných vybraných oblastí tak, aby makro kreslilo vždy graf z vybraného řádku.
C13: 11. Vytvořte pomocí Visual Basic IDE vlastní funkci Prvocislo s jedním argumentem, která vrátí hodnotu 0 pokud není argument prvočíslo a hodnotu 1, pokud je prvočíslo.
C14: 12. Využijte cyklus zadaný příkazem For, funkci Sqr pro odmocninu a funkci Mod pro dělení se zbytkem.
C15: 13. Vytvořte vlastní formulář se čtveřicí tlačítek nazvaných Žlutá, Červená, Modrá a Zelená, po jejichž stisknutí se níže vyznačená buňka zbarví příslušnou barvou.
D17: Tato buňka bude obarvena.

Sheet Cyklický odkaz
C3: Povolte na kartě Vzorce v Možnostech nastavení aplikace Excel iterativní přepočet a nastavte počet iterací na 100.
C4: V mapě 30 × 30 polí níže vložte do prázdných buněk vzorec, který spočítá hodnotu buňky jako průměr okolních 8 buněk.
C5: Buňky u krajů budou průměrem 5 okolních a buňky v rozích 3 okolních buněk.
C6: Použijte funkci Podmíněné formátování pro barevné zvýraznění rozdílů v buňkách mapy.
C8: =AVERAGE(D8,D9,C9) -> 76.02530168 | D8: =AVERAGE(C8,C9:E9,E8) -> 75.99026141 | E8: =AVERAGE(D8,D9:F9,F8) -> 75.89212527 | F8: 75.70270063 | G8: 75.37263841 | H8: 74.82954024 | I8: 73.9829446 | J8: 72.73993082 | K8: 71.02941691 | L8: 68.82506263 | M8: 66.15490745 | N8: 63.09197184 | O8: 59.73204749 | P8: 56.17113357 | Q8: 52.49347229 | R8: 48.7733199 | S8: 45.08793416 | T8: 41.53346663 | U8: 38.23230116 | V8: 35.31751113 | W8: 32.89512917 | X8: 31.00093553 | Y8: 29.58373933 | Z8: 28.5262852 | AA8: 27.69266488 | AB8: 26.97033396 | AC8: 26.29017178 | AD8: 25.62392673 | AE8: 24.97246105 | AF8: 24.35352744 | AG8: 23.79273764 | AH8: 23.3171898 | AI8: 22.95118248 | AJ8: 22.71360601 | AK8: =AVERAGE(AJ8,AJ9,AK9) -> 22.616615
C9: =AVERAGE(C8:D8,D9,C10:D10) -> 76.0570884 | D9: =AVERAGE(C8:E8,C9,E9,C10:E10) -> 76.02860751 | E9: =AVERAGE(D8:F8,D9,F9,D10:F10) -> 75.94825327 | F9: 75.79087141 | G9: 75.50968101 | H9: 75.03046297 | I9: 74.25203626 | J9: 73.06281259 | K9: =AVERAGE(J8:L8,J9,L9,J10:L10) -> 71.37250174 | L9: 69.14683326 | M9: 66.42170916 | N9: 63.28901504 | O9: 59.8622342 | P9: 56.24593643 | Q9: 52.52203044 | R9: 48.75499324 | S9: 45.00822036 | T9: 41.36972036 | U9: 37.9692055 | V9: 34.97164943 | W9: =AVERAGE(V8:X8,V9,X9,V10:X10) -> 32.51931706 | X9: 30.66627947 | Y9: 29.34026035 | Z9: 28.38498541 | AA9: 27.62982736 | AB9: 26.95194602 | AC9: 26.28711545 | AD9: 25.61759443 | AE9: 24.9523503 | AF9: 24.31496716 | AG9: 23.735183 | AH9: 23.24288366 | AI9: 22.86402565 | AJ9: 22.6182711 | AK9: =AVERAGE(AJ8:AK8,AJ9,AJ10:AK10) -> 22.51799978
C10: 76.12742694 | D10: =AVERAGE(C9:E9,C10,E10,C11:E11) -> 76.11389613 | E10: 76.0745752 | F10: 75.99305555 | G10: 75.83400705 | H10: 75.52423472 | I10: 74.93868197 | J10: 73.90774025 | K10: =AVERAGE(J9:L9,J10,L10,J11:L11) -> 72.27930413 | L10: 69.98896777 | M10: 67.10284974 | N10: 63.7741185 | O10: 60.17233465 | P10: 56.42136852 | Q10: 52.59292228 | R10: 48.7231485 | S10: 44.83894803 | T10: 40.98428055 | U10: 37.30345332 | V10: 34.04130677 | W10: =AVERAGE(V9:X9,V10,X10,V11:X11) -> 31.49501574 | X10: 29.76675365 | Y10: 28.72913038 | Z10: 28.0640212 | AA10: 27.51400426 | AB10: 26.93443009 | AC10: 26.2970748 | AD10: 25.61150222 | AE10: 24.90621131 | AF10: 24.21867159 | AG10: 23.58865559 | AH10: 23.05289266 | AI10: 22.64126455 | AJ10: 22.37497737 | AK10: =AVERAGE(AJ9:AK9,AJ10,AJ11:AK11) -> 22.26656052
C11: 76.21571437 | D11: 76.22187909 | E11: 76.23769121 | F11: 76.26241301 | G11: 76.28701583 | H11: 76.27438289 | I11: 76.06766789 | J11: 75.39017334 | K11: =AVERAGE(J10:L10,J11,L11,J12:L12) -> 73.89879673 | L11: 71.46665832 | M11: 68.22313935 | N11: 64.51240678 | O11: 60.60930965 | P11: 56.66433889 | Q11: 52.70189224 | R11: 48.7097199 | S11: 44.65651013 | T11: 40.50503804 | U11: 36.22319325 | V11: 32.3632749 | W11: =AVERAGE(V10:X10,V11,X11,V12:X12) -> 29.48538544 | X11: 28.14619932 | Y11: 27.75248301 | Z11: 27.71210483 | AA11: 27.44942131 | AB11: 26.98534806 | AC11: 26.3607561 | AD11: 25.6279607 | AE11: 24.84301106 | AF11: 24.06369073 | AG11: 23.34536225 | AH11: 22.73565311 | AI11: 22.27017349 | AJ11: 21.97129963 | AK11: 21.85028465
C12: 76.2951844 | D12: 76.32023503 | E12: 76.39037494 | F12: 76.52516469 | G12: 76.75748129 | H12: 77.12544617 | I12: 77.66058321 | J12: 77.72015162 | K12: =AVERAGE(J11:L11,J12,L12,J13:L13) -> 76.64850859 | L12: 73.78891561 | M12: 69.80283019 | N12: 65.34841449 | O12: 61.06630567 | P12: 56.91523855 | Q12: 52.83538855 | R12: 48.75306121 | S12: 44.57593542 | T12: 40.16199447 | U12: 35.29603115 | V12: 29.13020474 | W12: =AVERAGE(V11:X11,V12,X12,V13:X13) -> 25.93164324 | X12: 25.00871839 | Y12: 27.0005005 | Z12: 27.59247586 | AA12: 27.59484675 | AB12: 27.19818737 | AC12: 26.53411426 | AD12: 25.69748378 | AE12: 24.7735861 | AF12: 23.84503731 | AG12: 22.98904677 | AH12: 22.26930696 | AI12: 21.72857983 | AJ12: 21.38747122 | AK12: 21.25114291
C13: 76.34070155 | D13: 76.37744053 | E13: 76.48295809 | F13: 76.69528013 | G13: 77.08816275 | H13: 77.80204118 | I13: 79.06628603 | J13: 81.83856239 | K13: =AVERAGE(J12:L12,J13,L13,J14:L14) -> 81.19067535 | L13: 77.89417302 | M13: 71.18658238 | N13: 66.00239372 | O13: 61.38439352 | P13: 57.09399665 | Q13: 52.96633072 | R13: 48.87857726 | S13: 44.70018126 | T13: 40.24244456 | U13: 35.09666188 | V13: 28.64547177 | W13: 10 | X13: =AVERAGE(W12:Y12,W13,Y13,W14:Y14) -> 24.67391363 | Y13: 27.07964796 | Z13: 28.03849833 | AA13: 28.11234636 | AB13: 27.67043744 | AC13: 26.87827672 | AD13: 25.85451388 | AE13: 24.70770272 | AF13: 23.54934088 | AG13: 22.48861087 | AH13: 21.61542541 | AI13: 20.98165763 | AJ13: 20.59770505 | AK13: 20.44898055
C14: 76.33743071 | D14: 76.37326439 | E14: 76.47943731 | F14: 76.70252823 | G14: 77.13619165 | H14: 77.96122287 | I14: 79.62100455 | J14: 82.80131782 | K14: 100 | L14: 78.83379895 | M14: 71.70210107 | N14: 66.12007152 | O14: =AVERAGE(N13:P13,N14,P14,N15:P15) -> 61.40849433 | P14: 57.12027858 | Q14: 53.05558942 | R14: 49.07856136 | S14: 45.06361474 | T14: 40.84730352 | U14: 36.19787301 | V14: 30.2520055 | W14: 27.25937784 | X14: =AVERAGE(W13:Y13,W14,Y14,W15:Y15) -> 26.5063934 | Y14: 28.60505964 | Z14: 29.21166015 | AA14: 29.11148985 | AB14: 28.48121846 | AC14: 27.45306531 | AD14: 26.13724035 | AE14: 24.65468993 | AF14: 23.14977839 | AG14: 21.78632409 | AH14: 20.70467651 | AI14: 19.9752501 | AJ14: 19.5748956 | AK14: 19.43371231
C15: 76.28802412 | D15: 76.30776903 | E15: 76.37241428 | F15: 76.52390265 | G15: 76.84193529 | H15: 77.4745128 | I15: 78.65969647 | J15: 81.3644374 | K15: =AVERAGE(J14:L14,J15,L15,J16:L16) -> 80.66990788 | L15: 77.35663246 | M15: 70.67035477 | N15: 65.55284082 | O15: =AVERAGE(N14:P14,N15,P15,N16:P16) -> 61.05345409 | P15: 56.94057003 | Q15: 53.05944492 | R15: 49.30700063 | S15: 45.59779575 | T15: 41.85709554 | U15: 38.02280058 | V15: 34.61923605 | W15: 32.17465576 | X15: =AVERAGE(W14:Y14,W15,Y15,W16:Y16) -> 31.20337896 | Y15: 31.0551477 | Z15: 31.07187365 | AA15: 30.6192568 | AB15: 29.68666881 | AC15: 28.31824932 | AD15: 26.59796156 | AE15: 24.63350812 | AF15: 22.60751854 | AG15: 20.77057677 | AH15: 19.40470993 | AI15: 18.6149018 | AJ15: 18.30807359 | AK15: 18.23892871
C16: 76.21614549 | D16: 76.2055557 | E16: 76.18993896 | F16: 76.19697523 | G16: 76.27185523 | H16: 76.46834548 | I16: 76.83589848 | J16: 76.75087474 | K16: =AVERAGE(J15:L15,J16,L16,J17:L17) -> 75.57683806 | L16: 72.67540102 | M16: 68.72469673 | N16: 64.39733617 | O16: =AVERAGE(N15:P15,N16,P16,N17:P17) -> 60.34626026 | P16: 56.54182462 | Q16: 52.93925816 | R16: 49.49252056 | S16: 46.16926328 | T16: 42.96704806 | U16: 39.99110514 | V16: 37.45077541 | W16: 35.60533112 | X16: =AVERAGE(W15:Y15,W16,Y16,W17:Y17) -> 34.50078304 | Y16: 33.92031863 | Z16: 33.42175057 | AA16: 32.6303435 | AB16: 31.33908829 | AC16: 29.54067898 | AD16: 27.31011373 | AE16: 24.73618798 | AF16: 21.87461533 | AG16: 19.25450762 | AH16: 17.38252274 | AI16: 16.74895846 | AJ16: 16.82016651 | AK16: 17.05781503
C17: 76.16548525 | D17: 76.11393665 | E17: 75.99078878 | F17: 75.808225 | G17: 75.57679532 | H17: 75.28420113 | I17: 74.80191706 | J17: 73.88324762 | K17: =AVERAGE(J16:L16,J17,L17,J18:L18) -> 72.21509722 | L17: 69.69914716 | M17: 66.49057484 | N17: 62.95532819 | O17: =AVERAGE(N16:P16,N17,P17,N18:P18) -> 59.38522202 | P17: 55.94354911 | Q17: 52.66688166 | R17: 49.56231691 | S17: 46.63824576 | T17: 43.93212455 | U17: 41.52799401 | V17: 39.55180556 | W17: 38.11331231 | X17: =AVERAGE(W16:Y16,W17,Y17,W18:Y18) -> 37.22873813 | Y17: 36.70541734 | Z17: 36.17549503 | AA17: 35.19618745 | AB17: 33.53246353 | AC17: 31.1888949 | AD17: 28.35202937 | AE17: 25.11343744 | AF17: 21.40035674 | AG17: 16.48086399 | AH17: 14.11492897 | AI17: 13.67076528 | AJ17: 15.67563131 | AK17: 16.24629249
C18: 76.19530044 | D18: 76.09652975 | E18: 75.85180386 | F18: 75.46339899 | G18: 74.92429598 | H18: 74.19711579 | I18: 73.19743374 | J18: 71.79826525 | K18: =AVERAGE(J17:L17,J18,L18,J19:L19) -> 69.88970018 | L18: 67.44734626 | M18: 64.57356488 | N18: 61.45182006 | O18: =AVERAGE(N17:P17,N18,P18,N19:P19) -> 58.27319252 | P18: 55.17250738 | Q18: 52.22328854 | R18: 49.45983011 | S18: 46.90928899 | T18: 44.61361466 | U18: 42.64047665 | V18: 41.077041 | W18: 40.00844649 | X18: 39.48361407 | Y18: 39.49271687 | Z18: 39.41995583 | AA18: =AVERAGE(Z17:AB17,Z18,AB18,Z19:AB19) -> 38.61730251 | AB18: 36.43313279 | AC18: 33.31411309 | AD18: 29.6895739 | AE18: 25.92326999 | AF18: 21.62138657 | AG18: 16.19861553 | AH18: 0 | AI18: =AVERAGE(AH17:AJ17,AH18,AJ18,AH19:AJ19) -> 13.18321858 | AJ18: 15.44071875 | AK18: 16.23714721
C19: 76.37485837 | D19: 76.22573225 | E19: 75.85438525 | F19: 75.26148619 | G19: 74.43946228 | H19: 73.36373223 | I19: 71.98913597 | J19: 70.26190045 | K19: =AVERAGE(J18:L18,J19,L19,J20:L20) -> 68.14773376 | L19: 65.66490639 | M19: 62.89808742 | N19: 59.98134989 | O19: =AVERAGE(N18:P18,N19,P19,N20:P20) -> 57.05728167 | P19: 54.23852272 | Q19: 51.59216162 | R19: 49.15057963 | S19: 46.93591846 | T19: 44.98172216 | U19: 43.34318636 | V19: 42.09636372 | W19: 41.33478039 | X19: 41.18195267 | Y19: 41.803582 | Z19: 43.94301053 | AA19: =AVERAGE(Z18:AB18,Z19,AB19,Z20:AB20) -> 43.42596289 | AB19: 40.81223901 | AC19: 35.37792779 | AD19: 31.12667483 | AE19: 27.12027715 | AF19: 22.96245685 | AG19: 17.77184476 | AH19: 15.23710772 | AI19: =AVERAGE(AH18:AJ18,AH19,AJ19,AH20:AJ20) -> 14.68961684 | AJ19: 16.63700909 | AK19: 17.18610098
C20: 76.77936237 | D20: 76.57740524 | E20: 76.07626309 | F20: 75.2825123 | G20: 74.19981648 | H20: 72.82338775 | I20: 71.13925592 | J20: 69.13204122 | K20: =AVERAGE(J19:L19,J20,L20,J21:L21) -> 66.80168069 | L20: 64.1860714 | M20: 61.37510713 | N20: 58.50457302 | O20: =AVERAGE(N19:P19,N20,P20,N21:P21) -> 55.71721151 | P20: 53.11911508 | Q20: 50.75346231 | R20: 48.62002628 | S20: 46.71070001 | T20: 45.04162512 | U20: 43.659006 | V20: 42.63567988 | W20: 42.07233017 | X20: 42.12285064 | Y20: 43.13733361 | Z20: 45.64725029 | AA20: 60 | AB20: =AVERAGE(AA19:AC19,AA20,AC20,AA21:AC21) -> 42.53483088 | AC20: 36.79466364 | AD20: =AVERAGE(AC19:AE19,AC20,AE20,AC21:AE21) -> 32.31822469 | AE20: 28.47538151 | AF20: 24.84528245 | AG20: 21.74362909 | AH20: 19.56631128 | AI20: =AVERAGE(AH19:AJ19,AH20,AJ20,AH21:AJ21) -> 18.74365733 | AJ20: 18.70894531 | AK20: 18.90670221
C21: 77.4892224 | D21: 77.2296296 | E21: 76.58983609 | F21: 75.58916482 | G21: 74.24973048 | H21: 72.58910115 | I21: 70.61691179 | J21: 68.33787985 | K21: =AVERAGE(J20:L20,J21,L21,J22:L22) -> 65.76187295 | L21: 62.92107967 | M21: 59.91814184 | N21: 56.92668475 | O21: =AVERAGE(N20:P20,N21,P21,N22:P22) -> 54.16275635 | P21: 51.7474446 | Q21: 49.68411602 | R21: 47.87576926 | S21: 46.25754039 | T21: 44.82245666 | U21: 43.62250903 | V21: 42.7285428 | W21: 42.22875744 | X21: 42.24974921 | Y21: 42.97435258 | Z21: 45.17594985 | AA21: 44.7178313 | AB21: 42.20088185 | AC21: 36.94916882 | AD21: =AVERAGE(AC20:AE20,AC21,AE21,AC22:AE22) -> 33.03739281 | AE21: 29.66434528 | AF21: 26.72843351 | AG21: 24.29592721 | AH21: 22.54170478 | AI21: =AVERAGE(AH20:AJ20,AH21,AJ21,AH22:AJ22) -> 21.50703877 | AJ21: 21.06156184 | AK21: 20.93991299
C22: 78.59380676 | D22: 78.26594152 | E22: 77.46524358 | F22: 76.2325725 | G22: 74.61738754 | H22: 72.66394421 | I22: 70.40241706 | J22: 67.8473081 | K22: =AVERAGE(J21:L21,J22,L22,J23:L23) -> 65.00159063 | L22: 61.86737003 | M22: 58.4568387 | N22: 55.10744409 | O22: =AVERAGE(N21:P21,N22,P22,N23:P23) -> 52.17143788 | P22: 50.00817179 | Q22: 48.3633184 | R22: 46.98565431 | S22: 45.63137173 | T22: 44.37275615 | U22: 43.28418188 | V22: 42.43586082 | W22: 41.89005378 | X22: 41.69502777 | Y22: 41.87732153 | Z22: 41.88936909 | AA22: 41.16417039 | AB22: 39.13022832 | AC22: 36.31619382 | AD22: =AVERAGE(AC21:AE21,AC22,AE22,AC23:AE23) -> 33.2609691 | AE22: 30.52023211 | AF22: 28.12888387 | AG22: 26.15382522 | AH22: 24.65938674 | AI22: =AVERAGE(AH21:AJ21,AH22,AJ22,AH23:AJ23) -> 23.6639024 | AJ22: 23.11088077 | AK22: 22.91149555
C23: 80.20101712 | D23: 79.78325379 | E23: 78.77556329 | F23: 77.25602742 | G23: 75.31766707 | H23: 73.04093264 | I23: 70.4774454 | J23: 67.64585194 | K23: =AVERAGE(J22:L22,J23,L23,J24:L24) -> 64.53453253 | L23: 61.09686556 | M23: 57.24807159 | N23: 52.56908204 | O23: =AVERAGE(N22:P22,N23,P23,N24:P24) -> 49.4065668 | P23: 47.44337864 | Q23: 47.08638334 | R23: 46.07565967 | S23: 44.91110892 | T23: 43.75006343 | U23: 42.70285314 | V23: 41.83844946 | W23: 41.19157543 | X23: 40.75250322 | Y23: 40.39594408 | Z23: 39.88571071 | AA23: 38.92370613 | AB23: 37.38972019 | AC23: 35.38018963 | AD23: =AVERAGE(AC22:AE22,AC23,AE23,AC24:AE24) -> 33.18103705 | AE23: 31.03923206 | AF23: 29.12160332 | AG23: 27.50751341 | AH23: 26.24719096 | AI23: =AVERAGE(AH22:AJ22,AH23,AJ23,AH24:AJ24) -> 25.35803378 | AJ23: 24.82546467 | AK23: 24.61967952
C24: 82.4557957 | D24: 81.90631516 | E24: 80.60238339 | F24: 78.69280539 | G24: 76.34463326 | H24: 73.69307039 | I24: 70.8109328 | J24: 67.71514211 | K24: =AVERAGE(J23:L23,J24,L24,J25:L25) -> 64.37748196 | L24: 60.72468324 | M24: 56.56438653 | N24: 51.59792906 | O24: 40 | P24: 46.3551081 | Q24: 46.15606263 | R24: 45.30374145 | S24: 44.16766817 | T24: =AVERAGE(S23:U23,S24,U24,S25:U25) -> 43.00199006 | U24: 41.92861226 | V24: 41.01094667 | W24: 40.26354766 | X24: =AVERAGE(W23:Y23,W24,Y24,W25:Y25) -> 39.64625009 | Y24: 39.06034141 | Z24: 38.36106478 | AA24: 37.41380449 | AB24: 36.15561793 | AC24: 34.63388884 | AD24: =AVERAGE(AC23:AE23,AC24,AE24,AC25:AE25) -> 32.97390116 | AE24: 31.32373042 | AF24: 29.80354154 | AG24: 28.49591118 | AH24: 27.44980859 | AI24: =AVERAGE(AH23:AJ23,AH24,AJ24,AH25:AJ25) -> 26.68919125 | AJ24: 26.21849031 | AK24: 26.03208946
C25: 85.57729865 | D25: 84.81111729 | E25: 83.04412332 | F25: 80.54989344 | G25: 77.65218468 | H25: 74.55451844 | I25: 71.3462826 | J25: 68.01425246 | K25: 64.5143901 | L25: 60.77416924 | M25: 56.68759754 | N25: 51.81671924 | O25: 48.49102621 | P25: 46.37905745 | Q25: 45.87841411 | R25: 44.72678579 | S25: 43.42787953 | T25: 42.14414901 | U25: 40.98361981 | V25: 39.99686127 | W25: 39.18208971 | X25: 38.48974131 | Y25: 37.83429421 | Z25: 37.11725968 | AA25: 36.25749496 | AB25: 35.21989988 | AC25: 34.02627879 | AD25: =AVERAGE(AC24:AE24,AC25,AE25,AC26:AE26) -> 32.74450685 | AE25: 31.46238786 | AF25: 30.26367707 | AG25: 29.21432177 | AH25: 28.3596786 | AI25: =AVERAGE(AH24:AJ24,AH25,AJ25,AH26:AJ26) -> 27.72667447 | AJ25: 27.32823586 | AK25: 27.168601
C26: 89.90419195 | D26: 88.8090922 | E26: 86.18976356 | F26: 82.79164304 | G26: 79.08163942 | H26: 75.50930394 | I26: 71.99813128 | J26: 68.47494053 | K26: 64.87674925 | L26: 61.15773204 | M26: 57.29036172 | N26: 53.5748253 | O26: 50.32765221 | P26: 47.87694288 | Q26: 45.94727971 | R26: 44.28236297 | S26: 42.65090771 | T26: =AVERAGE(S25:U25,S26,U26,S27:U27) -> 41.14546254 | U26: 39.84708459 | V26: 38.79388561 | W26: 37.96513826 | X26: 37.29038197 | Y26: 36.67592315 | Z26: 36.03342812 | AA26: 35.30176413 | AB26: 34.4571596 | AC26: 33.51323045 | AD26: =AVERAGE(AC25:AE25,AC26,AE26,AC27:AE27) -> 32.5120672 | AE26: 31.51061312 | AF26: 30.56710994 | AG26: 29.73184649 | AH26: 29.04304772 | AI26: =AVERAGE(AH25:AJ25,AH26,AJ26,AH27:AJ27) -> 28.52667523 | AJ26: 28.19831683 | AK26: 28.06589725
C27: 96.25586703 | D27: 94.06759829 | E27: 90.62279638 | F27: 84.8218659 | G27: 80.3709018 | H27: 76.40283069 | I27: 72.6679707 | J27: 69.0149798 | K27: 65.36679723 | L27: 61.69676156 | M27: 58.05505787 | N27: 54.56005831 | O27: 51.370156 | P27: 48.55245903 | Q27: 46.06952576 | R27: 43.81271809 | S27: 41.74542241 | T27: =AVERAGE(S26:U26,S27,U27,S28:U28) -> 39.9225116 | U27: 38.44215677 | V27: 37.34806203 | W27: 36.58610536 | X27: 36.03401281 | Y27: 35.55578604 | Z27: 35.05251734 | AA27: 34.47242295 | AB27: 33.80396924 | AC27: 33.06225652 | AD27: =AVERAGE(AC26:AE26,AC27,AE27,AC28:AE28) -> 32.27974713 | AE27: 31.49756 | AF27: 30.75789363 | AG27: 30.09862585 | AH27: 29.55046493 | AI27: =AVERAGE(AH26:AJ26,AH27,AJ27,AH28:AJ28) -> 29.13614308 | AJ27: 28.87088983 | AK27: 28.76346786
C28: 98.49845942 | D28: 110 | E28: =AVERAGE(D27:F27,D28,F28,D29:F29) -> 92.26062694 | F28: 86.04179566 | G28: 81.21578129 | H28: 77.10237814 | I28: 73.27656456 | J28: 69.56466347 | K28: 65.89404896 | L28: 62.25453012 | M28: 58.67884316 | N28: 55.22737851 | O28: 51.95621935 | P28: 48.88574011 | Q28: 45.98618412 | R28: 43.2125474 | S28: 40.60754312 | T28: 38.32935462 | U28: =AVERAGE(T27:V27,T28,V28,T29:V29) -> 36.61219014 | V28: 35.53873281 | W28: 34.9992335 | X28: 34.7194281 | Y28: 34.48013978 | Z28: 34.16049211 | AA28: 33.74021893 | AB28: 33.22987196 | AC28: 32.65486863 | AD28: =AVERAGE(AC27:AE27,AC28,AE28,AC29:AE29) -> 32.04717883 | AE28: 31.44024481 | AF28: 30.86566971 | AG28: 30.35152524 | AH28: 29.92149682 | AI28: =AVERAGE(AH27:AJ27,AH28,AJ28,AH29:AJ29) -> 29.59440806 | AJ28: 29.38389515 | AK28: 29.29836562
C29: 97.16431166 | D29: =AVERAGE(C28:E28,C29,E29,C30:E30) -> 95.00452533 | E29: =AVERAGE(D28:F28,D29,F29,D30:F30) -> 91.62372215 | F29: 85.90272741 | G29: 81.51596204 | H29: 77.56781006 | I29: 73.80122731 | J29: 70.09068112 | K29: 66.40506402 | L29: 62.75894117 | M29: 59.18075436 | N29: 55.69729105 | O29: 52.32067589 | P29: 49.03602393 | Q29: 45.79470475 | R29: 42.5257817 | S29: 39.15852659 | T29: 36.15350921 | U29: =AVERAGE(T28:V28,T29,V29,T30:V30) -> 33.99300346 | V29: 33.17021734 | W29: 33.15892181 | X29: 33.43841758 | Y29: 33.50283971 | Z29: 33.37765803 | AA29: 33.10238902 | AB29: 32.72246701 | AC29: 32.28042102 | AD29: =AVERAGE(AC28:AE28,AC29,AE29,AC30:AE30) -> 31.81307667 | AE29: 31.34929715 | AF29: 30.91157875 | AG29: 30.51867769 | AH29: 30.1878419 | AI29: =AVERAGE(AH28:AJ28,AH29,AJ29,AH30:AJ30) -> 29.9343367 | AJ29: 29.77024615 | AK29: 29.70335456
C30: 91.67627369 | D30: =AVERAGE(C29:E29,C30,E30,C31:E31) -> 90.6423091 | E30: =AVERAGE(D29:F29,D30,F30,D31:F31) -> 88.17051324 | F30: 84.96729508 | G30: 81.42614042 | H30: 77.9037876 | I30: 74.30066022 | J30: 70.60329605 | K30: 66.87994871 | L30: 63.19442819 | M30: 59.58393852 | N30: 56.05071159 | O30: 52.57983483 | P30: 49.13223571 | Q30: 45.63262448 | R30: 41.94652777 | S30: 37.86762139 | T30: 32.62535156 | U30: =AVERAGE(T29:V29,T30,V30,T31:V31) -> 30.03450526 | V30: 29.4801888 | W30: 31.54498702 | X30: 32.38019631 | Y30: 32.72162424 | Z30: 32.74479324 | AA30: 32.56880019 | AB30: 32.2748447 | AC30: 31.92835691 | AD30: =AVERAGE(AC29:AE29,AC30,AE30,AC31:AE31) -> 31.57274031 | AE30: 31.23154476 | AF30: 30.91238497 | AG30: 30.62332998 | AH30: 30.37564077 | AI30: =AVERAGE(AH29:AJ29,AH30,AJ30,AH31:AJ31) -> 30.18336843 | AJ30: 30.0578462 | AK30: 30.00644509
C31: 88.1203623 | D31: =AVERAGE(C30:E30,C31,E31,C32:E32) -> 87.44987048 | E31: =AVERAGE(D30:F30,D31,F31,D32:F32) -> 85.92890844 | F31: 83.84476319 | G31: 81.32563994 | H31: 78.38115529 | I31: 74.91172423 | J31: 71.14562059 | K31: 67.29146471 | L31: 63.55011822 | M31: 59.90522171 | N31: 56.33406887 | O31: 52.80393508 | P31: 49.26376432 | Q31: 45.62635001 | R31: 41.73563441 | S31: 37.23100402 | T31: 31.56465801 | U31: 15 | V31: 28.2891287 | W31: 30.65076451 | X31: 31.79208652 | Y31: 32.23195741 | Z31: 32.30507508 | AA31: 32.14803301 | AB31: 31.87517255 | AC31: 31.57314958 | AD31: =AVERAGE(AC30:AE30,AC31,AE31,AC32:AE32) -> 31.31501671 | AE31: 31.09109559 | AF31: 30.8872072 | AG31: 30.68639139 | AH31: 30.50696286 | AI31: =AVERAGE(AH30:AJ30,AH31,AJ31,AH32:AJ32) -> 30.36426514 | AJ31: 30.26985721 | AK31: 30.23094661
C32: 85.63134634 | D32: =AVERAGE(C31:E31,C32,E32,C33:E33) -> 85.20202288 | E32: =AVERAGE(D31:F31,D32,F32,D33:F33) -> 84.22724274 | F32: 82.9272657 | G32: 81.78511453 | H32: 79.36961221 | I32: 76.0265785 | J32: 71.5631011 | K32: 67.58821181 | L32: 63.80701639 | M32: 60.15074093 | N32: 56.57077751 | O32: 53.0274182 | P32: 49.47269728 | Q32: 45.83504646 | R32: 41.99229634 | S32: 37.75362992 | T32: 32.36233485 | U32: =AVERAGE(T31:V31,T32,V32,T33:V33) -> 29.64283269 | V32: 28.98541988 | W32: 30.97435369 | X32: 31.75978027 | Y32: 32.07305622 | Z32: 32.07907609 | AA32: 31.87328895 | AB32: 31.46324088 | AC32: 31.17169298 | AD32: =AVERAGE(AC31:AE31,AC32,AE32,AC33:AE33) -> 30.98415916 | AE32: 30.96742581 | AF32: 30.85832214 | AG32: 30.72720416 | AH32: 30.60012376 | AI32: =AVERAGE(AH31:AJ31,AH32,AJ32,AH33:AJ33) -> 30.49542651 | AJ32: 30.42494438 | AK32: 30.39566525
C33: 83.84082707 | D33: =AVERAGE(C32:E32,C33,E33,C34:E34) -> 83.54366035 | E33: 82.87398037 | F33: 82.04748512 | G33: 81.38500465 | H33: 85 | I33: 76.14169101 | J33: 71.69973695 | K33: 67.69980062 | L33: 63.94885854 | M33: 60.3217393 | N33: 56.76815312 | O33: 53.25497003 | P33: 49.75100707 | Q33: 46.21911468 | R33: 42.61953461 | S33: 38.91808243 | T33: 35.60551864 | U33: =AVERAGE(T32:V32,T33,V33,T34:V34) -> 33.182976 | V33: 32.15264842 | W33: 31.99067965 | X33: 32.17434775 | Y33: 32.19102387 | Z33: 32.0511308 | AA33: 31.7590707 | AB33: 31.30553738 | AC33: 30 | AD33: =AVERAGE(AC32:AE32,AC33,AE33,AC34:AE34) -> 30.85728646 | AE33: 30.89762989 | AF33: 30.84872409 | AG33: 30.76093916 | AH33: 30.66900668 | AI33: =AVERAGE(AH32:AJ32,AH33,AJ33,AH34:AJ34) -> 30.59084091 | AJ33: 30.53745972 | AK33: 30.51514323
C34: 82.53267389 | D34: 82.2944435 | E34: 81.74676134 | F34: 81.00297606 | G34: 80.43154896 | H34: 78.51604449 | I34: 75.56671424 | J34: 71.39175695 | K34: 67.62006081 | L34: 63.9796848 | M34: 60.42363815 | N34: 56.92507099 | O34: 53.47089695 | P34: 50.05376674 | Q34: 46.67417398 | R34: 43.35442245 | S34: 40.20953743 | T34: 37.44741124 | U34: 35.32737014 | V34: 33.94029791 | W34: 33.1772838 | X34: 32.76133271 | Y34: 32.46729962 | Z34: 32.16219543 | AA34: 31.80406257 | AB34: 31.33405813 | AC34: 31.03890289 | AD34: 30.8822837 | AE34: 30.91622658 | AF34: 30.86664592 | AG34: 30.79543887 | AH34: 30.72209118 | AI34: =AVERAGE(AH33:AJ33,AH34,AJ34,AH35:AJ35) -> 30.66003518 | AJ34: 30.61768797 | AK34: 30.59998347
C35: 81.60466186 | D35: =AVERAGE(C34:E34,C35,E35,C36:E36) -> 81.37978853 | E35: 80.83321022 | F35: 79.99856179 | G35: 78.70727056 | H35: 76.79506363 | I35: 74.10107852 | J35: 70.88836027 | K35: 67.41663334 | L35: 63.93567748 | M35: 60.47109458 | N35: 57.03885232 | O35: 53.65125046 | P35: 50.32413255 | Q35: 47.0846162 | R35: 43.98682554 | S35: 41.12352245 | T35: 38.6210095 | U35: 36.59130058 | V35: 35.07782615 | W35: 34.02232619 | X35: 33.29883971 | Y35: 32.76888946 | Z35: 32.33066554 | AA35: 31.92544862 | AB35: 31.56442041 | AC35: 31.27504897 | AD35: 31.09261629 | AE35: 30.98059055 | AF35: 30.90407184 | AG35: 30.8295864 | AH35: 30.76248912 | AI35: =AVERAGE(AH34:AJ34,AH35,AJ35,AH36:AJ36) -> 30.70843911 | AJ35: 30.67231454 | AK35: 30.65733639
C36: =AVERAGE(C35:D35,D36,C37:D37) -> 81.02384857 | D36: =AVERAGE(C35:E35,C36,E36,C37:E37) -> 80.79256681 | E36: 80.21015804 | F36: 79.24044148 | G36: 77.81614346 | H36: 75.85740075 | I36: 73.36432529 | J36: 70.42898135 | K36: 67.21735236 | L36: 63.87121533 | M36: 60.48576487 | N36: 57.10887855 | O36: 53.77425099 | P36: 50.5141823 | Q36: 47.36995094 | R36: 44.39950339 | S36: 41.67890571 | T36: 39.29059252 | U36: 37.29946402 | V36: 35.72646135 | W36: 34.53813356 | X36: 33.65846298 | Y36: 32.99701809 | Z36: 32.47533032 | AA36: 32.04510877 | AB36: 31.68777642 | AC36: 31.4049862 | AD36: 31.19537879 | AE36: 31.04754637 | AF36: 30.93999195 | AG36: 30.85658839 | AH36: 30.78941722 | AI36: =AVERAGE(AH35:AJ35,AH36,AJ36,AH37:AJ37) -> 30.73836233 | AJ36: 30.70516276 | AK36: 30.69155752
C37: =AVERAGE(C36,D36,D37) -> 80.78966227 | D37: =AVERAGE(C36:E36,C37,E37) -> 80.55257546 | E37: =AVERAGE(D36:F36,D37,F37) -> 79.94664565 | F37: 78.93749049 | G37: 77.47406794 | H37: 75.51886786 | I37: 73.08240654 | J37: 70.24246256 | K37: 67.1192528 | L37: 63.83625842 | M37: 60.48771308 | N37: 57.13645493 | O37: 53.82567403 | P37: 50.59461041 | Q37: 47.48900091 | R37: 44.56676461 | S37: 41.89646921 | T37: 39.54658691 | U37: 37.56751022 | V37: 35.97445344 | W37: 34.74070526 | X37: 33.80602219 | Y37: 33.09579829 | Z37: 32.54216517 | AA37: 32.09757771 | AB37: 31.73751537 | AC37: 31.45213563 | AD37: 31.23502977 | AE37: 31.07511101 | AF37: 30.95761808 | AG37: 30.86886335 | AH37: 30.80071236 | AI37: 30.75034222 | AJ37: 30.71806846 | AK37: =AVERAGE(AJ36,AK36,AJ37) -> 30.70492958

Sheet List1

Sheet List2
A2: 5 | B2: 2 | D2: =CTVEREC_SOUCTU(A2,B2) -> 49

Sheet PAHy
B2: middle date | C2: fluorene | D2: phenantrene | E2: fluoranthene | F2: pyrene
B3: 2003-10-15 | C3: 434.4 | D3: 1091.8 | E3: 297.4 | F3: 156.2
B4: 2003-11-12 | C4: 479 | D4: 1425.8 | E4: 327.2 | F4: 158.2
B5: 2003-12-10 | C5: 705.8 | D5: 2222.2 | E5: 635.6 | F5: 335.4
B6: 2004-01-07 | C6: 1069.4 | D6: 3792.4 | E6: 1030.4 | F6: 483.6
B7: 2004-02-04 | C7: 630.8 | D7: 2142 | E7: 674.2 | F7: 266
B8: 2004-03-03 | C8: 745 | D8: 2181.8 | E8: 639.2 | F8: 243.2
B9: 2004-03-31 | C9: 246.8 | D9: 786 | E9: 266 | F9: 126.4
B10: 2004-04-28 | C10: 126.8 | D10: 464.4 | E10: 142.4 | F10: 72
B11: 2004-05-26 | C11: 89.6 | D11: 269.4 | E11: 68 | F11: 36
B12: 2004-06-26 | C12: 55.85714 | D12: 163.2 | E12: 44.92857 | F12: 21.85714
B13: 2004-07-27 | C13: 5.6 | D13: 55.8 | E13: 27.2 | F13: 13
B14: 2004-08-24 | C14: 37.4 | D14: 108.8 | E14: 32.6 | F14: 15.8
B15: 2004-09-21 | C15: 143.4464 | D15: 408.5893 | E15: 130.5 | F15: 73.43214
B16: 2004-10-20 | C16: 442.7679 | D16: 1328.614 | E16: 405.4821 | F16: 205.9
B17: 2004-12-01 | C17: 1853.5 | D17: 5524.357 | E17: 1273.643 | F17: 691.4286
B18: 2005-01-12 | C18: 898.2 | D18: 2967 | E18: 823.2 | F18: 501.8
B19: 2005-02-09 | C19: 688 | D19: 1893.1 | E19: 460.8 | F19: 241.2
B20: 2005-03-09 | C20: 569.8 | D20: 1817.6 | E20: 494.6 | F20: 204.4
B21: 2005-04-06 | C21: 216.6 | D21: 700.4 | E21: 306.6 | F21: 348.6
B22: 2005-05-04 | C22: 64.7 | D22: 193.8 | E22: 84.8 | F22: 106.4
B23: 2005-06-01 | C23: 140 | D23: 363.6 | E23: 103.4 | F23: 42.6
B24: 2005-06-29 | C24: 138.2 | D24: 296 | E24: 60 | F24: 23.2
B25: 2005-07-27 | C25: 94.4 | D25: 293.2 | E25: 82.4 | F25: 52.6
B26: 2005-08-24 | C26: 97.4 | D26: 272.6 | E26: 111.6 | F26: 193.2
B27: 2005-09-21 | C27: 58 | D27: 137.8 | E27: 61 | F27: 38
B28: 2005-10-19 | C28: 417.6 | D28: 1066.8 | E28: 414.65 | F28: 275.75
B29: 2005-11-16 | C29: 1354.44 | D29: 3156.52 | E29: 741.52 | F29: 506.96
B30: 2005-12-14 | C30: 1261.38 | D30: 3246.14 | E30: 1107.68 | F30: 541.28
B31: 2006-01-11 | C31: 1003.46 | D31: 2293.98 | E31: 418.36 | F31: 181.86
B32: 2006-02-08 | C32: 1392.1 | D32: 3389.92 | E32: 614.42 | F32: 241.46
B33: 2006-03-08 | C33: 612.78 | D33: 2507.74 | E33: 499.36 | F33: 148.04
B34: 2006-04-05 | C34: 387.66 | D34: 1367.14 | E34: 296.56 | F34: 125.48
B35: 2006-05-03 | C35: 125.82 | D35: 445.32 | E35: 113.7 | F35: 50.56
B36: 2006-05-31 | C36: 99.02 | D36: 299.24 | E36: 77.92 | F36: 32.96
B37: 2006-06-28 | C37: 82.24 | D37: 221.26 | E37: 58.48 | F37: 24.84
B38: 2006-07-26 | C38: 84.34 | D38: 214.3 | E38: 86.8 | F38: 138.36
B39: 2006-08-23 | C39: 53.8 | D39: 148.12 | E39: 43.16 | F39: 23.18
B40: 2006-09-20 | C40: 75.02 | D40: 171.46 | E40: 56.1 | F40: 29.92
B41: 2006-10-18 | C41: 210.02 | D41: 571.12 | E41: 164.94 | F41: 93.08
B42: 2006-11-15 | C42: 390.46 | D42: 1202.36 | E42: 335.4 | F42: 179.3
B43: 2006-12-13 | C43: 663.28 | D43: 1860.88 | E43: 471.92 | F43: 258.4
B44: 2007-01-10 | C44: 218.5 | D44: 880.88 | E44: 342 | F44: 169.54
B45: 2007-02-07 | C45: 390.56 | D45: 1066.46 | E45: 372.42 | F45: 204.44
B46: 2007-03-07 | C46: 256.72 | D46: 843.62 | E46: 272.12 | F46: 30.8
B47: 2007-04-04 | C47: 176.7 | D47: 501.2 | E47: 171.88 | F47: 76.38
B48: 2007-05-02 | C48: 102.68 | D48: 317.36 | E48: 109.42 | F48: 51.34
B49: 2007-05-30 | C49: 51.4 | D49: 146.42 | E49: 38.1 | F49: 18.64
B50: 2007-06-27 | C50: 33.7 | D50: 80.08 | E50: 1.68 | F50: 3.74
B51: 2007-07-26 | C51: 37.37143 | D51: 90.38571 | E51: 29.29286 | F51: 12.49286
B52: 2007-08-23 | C52: 62.52071 | D52: 157.7736 | E52: 44.23714 | F52: 23.52071
B53: 2007-09-19 | C53: 122.84 | D53: 316.76 | E53: 121.74 | F53: 51.6
B54: 2007-10-17 | C54: 342.74 | D54: 842.74 | E54: 262.22 | F54: 150.16
B55: 2007-11-14 | C55: 441 | D55: 1279.46 | E55: 365.48 | F55: 195.86
B56: 2007-12-12 | C56: 849.75 | D56: 2461.21 | E56: 671.87 | F56: 322.11
B57: 2008-01-24 | C57: 1239.186667 | D57: 4255.458667 | E57: 1081.509333 | F57: 494.536
B58: 2008-02-21 | C58: 826.1723077 | D58: 2899.615385 | E58: 784.0215385 | F58: 370.9138462
B59: 2008-03-19 | C59: 355.26 | D59: 1239.34 | E59: 352.12 | F59: 161.86
B60: 2008-04-16 | C60: 216.18 | D60: 675.02 | E60: 201.28 | F60: 97.66
B61: 2008-05-14 | C61: 95.54 | D61: 317.94 | E61: 101.84 | F61: 53.78
B62: 2008-06-11 | C62: 42.4 | D62: 119.78 | E62: 42.74 | F62: 28.34
B63: 2008-07-09 | C63: 72.84 | D63: 222.62 | E63: 56.12 | F63: 23.6
B64: 2008-08-06 | C64: 48.66 | D64: 138.98 | E64: 46.1 | F64: 20.6
B65: 2008-09-03 | C65: 87.6 | D65: 183.1 | E65: 52.64 | F65: 28.6
B66: 2008-10-01 | C66: 213.96 | D66: 632.76 | E66: 185.58 | F66: 98.6
B67: 2008-10-29 | C67: 264.94 | D67: 841.78 | E67: 224.68 | F67: 108.92
B68: 2008-11-26 | C68: 445.9 | D68: 1351.58 | E68: 377.06 | F68: 179.62
B69: 2008-12-24 | C69: 1119.28 | D69: 2743.32 | E69: 674.6 | F69: 307.32
B70: 2009-01-21 | C70: 1295.32 | D70: 3065.78 | E70: 707.46 | F70: 282.98
B71: 2009-02-18 | C71: 534.74 | D71: 1619.68 | E71: 442.78 | F71: 174.32
B72: 2009-03-18 | C72: 209.2 | D72: 672.92 | E72: 202.78 | F72: 86.78
B73: 2009-04-15 | C73: 55.1 | D73: 174.22 | E73: 59.56 | F73: 26.44
B74: 2009-05-13 | C74: 33.86 | D74: 113.64 | E74: 38.7 | F74: 18.14
B75: 2009-06-10 | C75: 22 | D75: 67.28 | E75: 17.52 | F75: 8.98
B76: 2009-07-08 | C76: 18.1 | D76: 61.18 | E76: 18.32 | F76: 9.14
B77: 2009-08-05 | C77: 14.46 | D77: 38.58 | E77: 12.42 | F77: 5.98
B78: 2009-09-02 | C78: 32.76 | D78: 73.88 | E78: 22.9 | F78: 12.22
B79: 2009-09-30 | C79: 892.38 | D79: 2980.52 | E79: 941.66 | F79: 571.8
B80: 2009-10-28 | C80: 460.58 | D80: 1177.08 | E80: 322.8 | F80: 166.56
B81: 2009-11-25 | C81: 233.56 | D81: 813.18 | E81: 251.38 | F81: 137.94
B82: 2009-12-23 | C82: 701.78 | D82: 1846.8 | E82: 446.48 | F82: 188.56
B83: 2010-01-20 | C83: 723.06 | D83: 1738.92 | E83: 412.08 | F83: 147.18
B84: 2010-02-17 | C84: 680.8 | D84: 1673.4 | E84: 407.86 | F84: 136.6
B85: 2010-03-17 | C85: 263.6 | D85: 935.38 | E85: 308.34 | F85: 113.88
B86: 2010-04-14 | C86: 114.54 | D86: 351.1 | E86: 145.84 | F86: 68.88
B87: 2010-05-12 | C87: 106.82 | D87: 366.72 | E87: 131.46 | F87: 60.66
B88: 2010-06-09 | C88: 130.66 | D88: 390.4 | E88: 149.66 | F88: 74.76
B89: 2010-07-07 | C89: 72.98 | D89: 186.02 | E89: 76.72 | F89: 31.64
B90: 2010-08-04 | C90: 49.84 | D90: 143.77 | E90: 41.07 | F90: 20.69
B91: 2010-09-01 | C91: 82.84 | D91: 271.67 | E91: 93.84 | F91: 54.88
B92: 2010-09-29 | C92: 298.48 | D92: 737.94 | E92: 242.38 | F92: 128.54
B93: 2010-10-27 | C93: 154.96 | D93: 439.28 | E93: 139.64 | F93: 70.96
B94: 2010-11-24 | C94: 655.94 | D94: 1517.62 | E94: 358.42 | F94: 186.5
B95: 2010-12-22 | C95: 664.88 | D95: 1762.74 | E95: 444.56 | F95: 193.7
B96: 2011-01-19 | C96: 729.64 | D96: 1852.7 | E96: 469.72 | F96: 198.7
B97: 2011-02-16 | C97: 759.36 | D97: 1624.26 | E97: 392.5 | F97: 155.88
B98: 2011-03-16 | C98: 332.7 | D98: 966.56 | E98: 291.5 | F98: 124.04
B99: 2011-04-13 | C99: 174.68 | D99: 561.18 | E99: 152.64 | F99: 65.9
B100: 2011-05-11 | C100: 90.36 | D100: 275.96 | E100: 98.66 | F100: 48.26
B101: 2011-06-08 | C101: 153.44 | D101: 474.48 | E101: 180.44 | F101: 84.36
B102: 2011-07-06 | C102: 166.52 | D102: 487.88 | E102: 208.24 | F102: 88.16
B103: 2011-08-03 | C103: 24.3 | D103: 69.5 | E103: 22.08 | F103: 11.1
B104: 2011-08-31 | C104: 43.88 | D104: 108.08 | E104: 45.46 | F104: 24.02
B105: 2011-09-28 | C105: 147.12 | D105: 404.78 | E105: 130.4 | F105: 76.04
B106: 2011-10-26 | C106: 619.3 | D106: 1704.62 | E106: 683.82 | F106: 343.44
B107: 2011-11-23 | C107: 827.76 | D107: 2544.88 | E107: 803.26 | F107: 435.34
B108: 2011-12-21 | C108: 412.06 | D108: 1650.82 | E108: 601.74 | F108: 318.38
B109: 2012-01-18 | C109: 941.72 | D109: 2271.6 | E109: 749.66 | F109: 363.66
B110: 2012-02-15 | C110: 1006.72 | D110: 3190.76 | E110: 968.4 | F110: 416.74
B111: 2012-03-14 | C111: 272.56 | D111: 957.26 | E111: 368.26 | F111: 184.08
B112: 2012-04-11 | C112: 155.52 | D112: 540.64 | E112: 226.58 | F112: 109.46
B113: 2012-05-09 | C113: 49.94 | D113: 173.58 | E113: 94.66 | F113: 39.88
B114: 2012-06-06 | C114: 34.16 | D114: 92.12 | E114: 35.28 | F114: 12.7
B115: 2012-07-04 | C115: 38.06 | D115: 103.9 | E115: 38.22 | F115: 19.2
B116: 2012-08-01 | C116: 32.36 | D116: 78.34 | E116: 28.94 | F116: 13.2
B117: 2012-08-29 | C117: 53.76 | D117: 132.04 | E117: 43.5 | F117: 25.84
B118: 2012-09-26 | C118: 64.88 | D118: 205.48 | E118: 73.48 | F118: 45.1
B119: 2012-10-24 | C119: 272 | D119: 857.42 | E119: 292.28 | F119: 146.46
B120: 2012-11-21 | C120: 453.8 | D120: 1301.6 | E120: 445.2 | F120: 220.62
